fUSD/lending_fUSD_20250113
["ID","MTS","AMOUNT","RATE_DAILY","PERIOD"]
[348705214,1736733033870,-381.60094149,9.999e-05,2]
[348705215,1736733033880,-500.0,9.999e-05,2]
[348705216,1736733033890,-500.0,9.999e-05,2]
[348705217,1736733033900,-500.0,9.999e-05,2]
[348705218,1736733033911,-500.0,9.999e-05,2]
[348705219,1736733033921,-500.0,9.999e-05,2]
[348705220,1736733033931,-500.0,9.999e-05,2]
[348705221,1736733033940,-500.0,9.999e-05,2]
[348705222,1736733033950,-500.0,9.999e-05,2]
[348705223,1736733033959,-500.0,9.999e-05,2]
[348705224,1736733033969,-360.87596421,9.999e-05,2]
[348705225,1736733033978,-539.05,9.999e-05,2]
[348705226,1736733033988,-500.0,9.999e-05,2]
[348705227,1736733033997,-500.0,9.999e-05,2]
[348705228,1736733034007,-1000.0,9.999e-05,2]
[348705229,1736733034017,-500.0,9.999e-05,2]
[348705230,1736733034026,-500.0,9.999e-05,2]
[348705231,1736733034036,-399.84435879,9.999e-05,2]
[348705232,1736733034045,-372.80867737,9.999e-05,2]
[348705233,1736733034055,-720.84,9.999e-05,2]
[348705234,1736733034065,-500.0,9.999e-05,2]
[348705235,1736733034076,-509.43204128,9.999e-05,2]
[348705236,1736733034087,-500.0,9.999e-05,2]
[348705237,1736733034097,-500.0,9.999e-05,2]
[348705238,1736733034111,-444.08789732,9.999e-05,2]
[348705239,1736733034122,-677.92,9.999e-05,2]
[348705240,1736733034131,-500.0,9.999e-05,2]
[348705241,1736733034141,-500.0,9.999e-05,2]
[348705242,1736733034150,-500.0,9.999e-05,2]
[348705243,1736733034160,-500.0,9.999e-05,2]
[348705244,1736733034171,-500.0,9.999e-05,2]
[348705245,1736733034180,-500.0,9.999e-05,2]
[348705246,1736733034191,-500.0,9.999e-05,2]
[348705247,1736733034201,-500.0,9.999e-05,2]
[348705248,1736733034210,-715.19,9.999e-05,2]
[348705249,1736733034220,-500.0,9.999e-05,2]
[348705250,1736733034230,-958.9,9.999e-05,2]
[348705251,1736733034239,-598.92,9.999e-05,2]
[348705252,1736733034248,-500.0,9.999e-05,2]
[348705253,1736733034257,-500.0,9.999e-05,2]
[348705254,1736733034267,-2186.0,9.999e-05,2]
[348705255,1736733034276,-500.0,9.999e-05,2]
[348705256,1736733034285,-3607.43,9.999e-05,2]
[348705257,1736733034295,-657.29,9.999e-05,2]
[348705258,1736733034304,-500.0,9.999e-05,2]
[348705259,1736733034313,-500.0,9.999e-05,2]
[348705260,1736733034322,-500.0,9.999e-05,2]
[348705261,1736733034332,-1175.9,9.999e-05,2]
[348705262,1736733034342,-500.0,9.999e-05,2]
[348705263,1736733034351,-300.66984965,9.999e-05,2]
[348705264,1736733034364,-1360.95,9.999e-05,2]
[348705265,1736733034374,-500.0,9.999e-05,2]
[348705266,1736733034383,-500.0,9.999e-05,2]
[348705267,1736733034392,-500.0,9.999e-05,2]
[348705268,1736733034401,-500.0,9.999e-05,2]
[348705269,1736733034410,-329.79374708,9.999e-05,2]
[348705270,1736733034419,-1618.3,9.999e-05,2]
[348705271,1736733034429,-511.59326432,9.999e-05,2]
[348705272,1736733034438,-524.02,9.999e-05,2]
[348705273,1736733034447,-500.0,9.999e-05,2]
[348705274,1736733034457,-500.0,9.999e-05,2]
[348705275,1736733034467,-730.06,9.999e-05,2]
[348705276,1736733034476,-500.0,9.999e-05,2]
[348705277,1736733034485,-860.68,9.999e-05,2]
[348705278,1736733034495,-408.84281947,9.999e-05,2]
[348705279,1736733034504,-500.0,9.999e-05,2]
[348705280,1736733034513,-500.0,9.999e-05,2]
[348705281,1736733034522,-500.0,9.999e-05,2]
[348705282,1736733034532,-500.0,9.999e-05,2]
[348705283,1736733034542,-500.0,9.999e-05,2]
[348705284,1736733034551,-500.0,9.999e-05,2]
[348705285,1736733034560,-500.0,9.999e-05,2]
[348705286,1736733034569,-1333.24,9.999e-05,2]
[348705287,1736733034578,-764.44,9.999e-05,2]
[348705288,1736733034588,-1673.89,9.999e-05,2]
[348705289,1736733034597,-500.0,9.999e-05,2]
[348705290,1736733034610,-500.0,9.999e-05,2]
[348705291,1736733034619,-500.0,9.999e-05,2]
[348705292,1736733034628,-507.06056297,9.999e-05,2]
[348705293,1736733034637,-500.0,9.999e-05,2]
[348705294,1736733034647,-222.13460627,9.999e-05,2]
[348705295,1736733034656,-1429.03,9.999e-05,2]
[348705296,1736733034665,-923.35,9.999e-05,2]
[348705297,1736733034674,-500.0,9.999e-05,2]
[348705298,1736733034683,-500.0,9.999e-05,2]
[348705299,1736733034692,-500.0,9.999e-05,2]
[348705300,1736733034702,-500.0,9.999e-05,2]
[348705301,1736733034711,-500.0,9.999e-05,2]
[348705302,1736733034720,-1534.95,9.999e-05,2]
[348705303,1736733034729,-500.0,9.999e-05,2]
[348705304,1736733034738,-500.0,9.999e-05,2]
[348705305,1736733034747,-883.6,9.999e-05,2]
[348705306,1736733034756,-500.0,9.999e-05,2]
[348705307,1736733034765,-892.78,9.999e-05,2]
[348705308,1736733034775,-612.16,9.999e-05,2]
[348705309,1736733034784,-631.58741775,9.999e-05,2]
[348705310,1736733034793,-1404.18,9.999e-05,2]
[348705311,1736733034802,-212.36303273,9.999e-05,2]
[348705312,1736733034811,-500.0,9.999e-05,2]
[348705313,1736733034821,-881.37,9.999e-05,2]
[348705314,1736733034830,-1322.63,9.999e-05,2]
[348705315,1736733034839,-534.18,9.999e-05,2]
[348705316,1736733034848,-500.0,9.999e-05,2]
[348705317,1736733034860,-615.45,9.999e-05,2]
[348705318,1736733034869,-581.38,9.999e-05,2]
[348705319,1736733034878,-749.2,9.999e-05,2]
[348705320,1736733034887,-507.68185434,9.999e-05,2]
[348705321,1736733034896,-500.0,9.999e-05,2]
[348705322,1736733034905,-500.0,9.999e-05,2]
[348705323,1736733034914,-500.0,9.999e-05,2]
[348705324,1736733035149,-500.0,9.999e-05,2]
[348705325,1736733035159,-517.31,9.999e-05,2]
[348705326,1736733035169,-1606.49,9.999e-05,2]
[348705327,1736733035178,-500.0,9.999e-05,2]
[348705328,1736733035187,-500.0,9.999e-05,2]
[348705329,1736733035196,-542.83,9.999e-05,2]
[348705330,1736733035205,-500.0,9.999e-05,2]
[348705331,1736733035214,-512.91998668,9.999e-05,2]
[348705332,1736733035223,-500.0,9.999e-05,2]
[348705333,1736733035232,-981.17,9.999e-05,2]
[348705334,1736733035241,-500.0,9.999e-05,2]
[348705335,1736733035251,-500.24,9.999e-05,2]
[348705336,1736733035260,-500.0,9.999e-05,2]
[348705337,1736733035269,-500.0,9.999e-05,2]
[348705338,1736733035278,-500.0,9.999e-05,2]
[348705339,1736733035287,-500.0,9.999e-05,2]
[348705340,1736733035296,-500.0,9.999e-05,2]
[348705341,1736733035306,-2324.69,9.999e-05,2]
[348705342,1736733035315,-500.0,9.999e-05,2]
[348705343,1736733035323,-500.0,9.999e-05,2]
[348705344,1736733035332,-500.0,9.999e-05,2]
[348705345,1736733035341,-500.0,9.999e-05,2]
[348705346,1736733035351,-945.5,9.999e-05,2]
[348705347,1736733035366,-500.0,9.999e-05,2]
[348705348,1736733035375,-604.99216956,9.999e-05,2]
[348705349,1736733035384,-500.0,9.999e-05,2]
[348705350,1736733035393,-690.25,9.999e-05,2]
[348705351,1736733035402,-500.0,9.999e-05,2]
[348705352,1736733035411,-500.0,9.999e-05,2]
[348705353,1736733035421,-500.0,9.999e-05,2]
[348705354,1736733035430,-565.23,9.999e-05,2]
[348705355,1736733035439,-500.0,9.999e-05,2]
[348705356,1736733035449,-500.0,9.999e-05,2]
[348705357,1736733035458,-1720.96,9.999e-05,2]
[348705358,1736733035467,-500.0,9.999e-05,2]
[348705359,1736733035476,-545.46,9.999e-05,2]
[348705360,1736733035484,-911.85,9.999e-05,2]
[348705361,1736733035493,-581.4,9.999e-05,2]
[348705362,1736733035502,-500.0,9.999e-05,2]
[348705363,1736733035512,-333.75472152,9.999e-05,2]
[348705364,1736733035521,-500.0,9.999e-05,2]
[348705365,1736733035530,-500.52140736,9.999e-05,2]
[348705366,1736733035538,-500.0,9.999e-05,2]
[348705367,1736733035547,-500.0,9.999e-05,2]
[348705368,1736733035557,-500.0,9.999e-05,2]
[348705369,1736733035566,-279.17657257,9.999e-05,2]
[348705370,1736733035574,-374.95259082,9.999e-05,2]
[348705371,1736733035583,-500.0,9.999e-05,2]
[348705372,1736733035592,-271.16907469,9.999e-05,2]
[348705373,1736733035601,-500.0,9.999e-05,2]
[348705374,1736733035614,-1032.0,0.0001,2]
[348705375,1736733035623,-915078.41804577,0.0001,2]
[348705381,1736733038377,-2094.92,9.999e-05,2]
[348705382,1736733038386,-500.0,9.999e-05,2]
[348705383,1736733038395,-83.00281392,0.0001,2]
[348705384,1736733038406,-1658.55775275,0.0001,2]
[348705385,1736733038417,-9449.6,0.0001,2]
[348705386,1736733038428,-629.76483287,0.0001,2]
[348705387,1736733038439,-355.17091682,0.0001,2]
[348705388,1736733038450,-759.499977,0.0001,2]
[348705389,1736733038461,-4869.19156278,0.0001,2]
[348705390,1736733038516,-28227.8959225,0.0001,2]
[348705391,1736733038527,-18845.66653605,0.0001,2]
[348705392,1736733038538,-436.9247702,0.0001,2]
[348705395,1736733038911,-544.32727247,0.0001,2]
[348705396,1736733038923,-6927.16781784,0.0001,2]
[348705397,1736733038934,-8178.4,0.0001,2]
[348705399,1736733040821,-500.0,9.999e-05,2]
[348705400,1736733040831,-1026.0,0.0001,2]
[348705401,1736733040839,-328.36733711,0.0001,2]
[348705402,1736733040850,-662.8009845,0.0001,2]
[348705408,1736733043578,-500.0,9.998e-05,2]
[348705409,1736733043587,-500.0,9.999e-05,2]
[348705410,1736733043596,-3927.02682689,0.0001,2]
[348705411,1736733043607,-3536.28,0.0001,2]
[348705412,1736733043620,-375.676,0.0001,2]
[348705413,1736733043631,-1349.03038877,0.0001,2]
[348705418,1736733046266,-305.15593113,9.999e-05,2]
[348705420,1736733046278,-194.84406887,9.999e-05,2]
[348705421,1736733046287,-931.0,0.0001,2]
[348705422,1736733046297,-330.94764536,0.0001,2]
[348705423,1736733046424,-3789.13606921,0.0001,2]
[348705424,1736733046435,-7880.0,0.0001,2]
[348705425,1736733046446,-7646.37243251,0.0001,2]
[348705426,1736733046458,-8482.2965772,0.0001,2]
[348705427,1736733046469,-626.04759607,0.0001,2]
[348705428,1736733046582,-550.85,0.0001,2]
[348705429,1736733046593,-62716.82517037,0.0001,2]
[348705430,1736733046604,-2263.0641,0.0001,2]
[348705433,1736733503690,604.0,8.97e-05,2]
[348705434,1736733801665,727.77,8.219e-05,2]
[348705435,1736733828206,528.0,0.00023,120]
[348705437,1736734232798,-326.34,9.105e-05,2]
[348705438,1736734232808,-250.0,9.18e-05,2]
[348705439,1736734232817,-250.0,9.199e-05,2]
[348705440,1736734232827,-156.99,9.5e-05,2]
[348705441,1736734232836,-2585.54164521,9.543e-05,2]
[348705442,1736734232847,-4610.96743379,9.543e-05,2]
[348705443,1736734232857,-283.71336898,9.591e-05,2]
[348705444,1736734232867,-1000.0,9.591e-05,2]
[348705445,1736734232876,-500.0,9.616e-05,2]
[348705446,1736734232885,-300.0,9.898e-05,2]
[348705447,1736734232894,-3734.7915,9.9e-05,2]
[348705448,1736734232905,-500.0,9.973e-05,2]
[348705449,1736734232914,-439.06697325,9.981e-05,2]
[348705450,1736734232925,-873.31397216,9.981e-05,2]
[348705451,1736734232935,-1312.38094541,9.984e-05,2]
[348705452,1736734232944,-1312.38094541,9.987e-05,2]
[348705453,1736734232954,-1312.38094541,9.988e-05,2]
[348705454,1736734232964,-5393.54319161,9.99e-05,2]
[348705455,1736734232975,-26.9060686,9.99e-05,2]
[348705456,1736734232984,-300.0,9.99e-05,2]
[348705457,1736734232993,-437.18739239,9.99e-05,2]
[348705458,1736734237314,-436.43260761,9.99e-05,2]
[348705459,1736734237323,-72.79540282,9.99e-05,2]
[348705460,1736734237334,-256.29459718,9.99e-05,2]
[348705461,1736734237343,-300.26,9.99e-05,2]
[348705462,1736734237352,-720.07844321,9.99e-05,2]
[348705464,1736734237550,-259.74155679,9.99e-05,2]
[348705465,1736734237560,-209.56716329,9.997e-05,2]
[348705467,1736734237571,-1102.81378212,9.997e-05,2]
[348705469,1736734237581,-3177.768,9.997e-05,2]
[348705471,1736734237590,-162.32,9.997e-05,2]
[348705472,1736734237599,-381.10324053,9.998e-05,2]
[348705495,1736734238543,-268.56675947,9.998e-05,2]
[348705497,1736734238553,-683.31,9.998e-05,2]
[348705498,1736734238563,-629.9,9.998e-05,2]
[348705499,1736734238571,-523.02,9.998e-05,2]
[348705501,1736734238580,-768.48,9.998e-05,2]
[348705502,1736734238589,-932.19,9.998e-05,2]
[348705503,1736734238599,-917.76,9.998e-05,2]
[348705504,1736734238607,-1620.82,9.998e-05,2]
[348705505,1736734238619,-186.954847,9.999e-05,2]
[348705506,1736734238627,-164.743296,9.999e-05,2]
[348705507,1736734238636,-516.83955486,9.999e-05,2]
[348705508,1736734238645,-2337.52,9.999e-05,2]
[348705509,1736734238654,-378.42734073,9.999e-05,2]
[348705510,1736734238663,-511.39818187,9.999e-05,2]
[348705511,1736734238672,-514.06856619,9.999e-05,2]
[348705512,1736734238681,-280.76295197,9.999e-05,2]
[348705513,1736734238690,-500.0,9.999e-05,2]
[348705514,1736734238700,-510.61901256,9.999e-05,2]
[348705515,1736734238710,-543.56,9.999e-05,2]
[348705516,1736734238729,-514.79896906,9.999e-05,2]
[348705517,1736734238739,-505.07250365,9.999e-05,2]
[348705518,1736734238748,-514.31771645,9.999e-05,2]
[348705519,1736734238758,-517.30282479,9.999e-05,2]
[348705520,1736734238767,-513.26279211,9.999e-05,2]
[348705521,1736734238778,-513.20047449,9.999e-05,2]
[348705522,1736734238787,-500.0,9.999e-05,2]
[348705523,1736734238796,-591.68344492,9.999e-05,2]
[348705524,1736734238806,-510.54246144,9.999e-05,2]
[348705525,1736734238816,-512.4391221,9.999e-05,2]
[348705526,1736734238826,-517.23720813,9.999e-05,2]
[348705527,1736734238835,-500.0,9.999e-05,2]
[348705528,1736734238845,-594.94491431,9.999e-05,2]
[348705529,1736734238854,-1146.24,9.999e-05,2]
[348705530,1736734238864,-512.55805405,9.999e-05,2]
[348705531,1736734238874,-571.92467803,9.999e-05,2]
[348705532,1736734238883,-507.25959546,9.999e-05,2]
[348705533,1736734238893,-518.70181053,9.999e-05,2]
[348705534,1736734238902,-513.97315613,9.999e-05,2]
[348705535,1736734238912,-500.0,9.999e-05,2]
[348705536,1736734238922,-513.48913092,9.999e-05,2]
[348705537,1736734238931,-510.96780451,9.999e-05,2]
[348705538,1736734238940,-500.0,9.999e-05,2]
[348705539,1736734238949,-350.021509,9.999e-05,2]
[348705540,1736734238959,-500.0,9.999e-05,2]
[348705541,1736734238968,-500.0,9.999e-05,2]
[348705542,1736734238977,-609.07,9.999e-05,2]
[348705543,1736734238987,-500.0,9.999e-05,2]
[348705544,1736734238996,-500.0,9.999e-05,2]
[348705546,1736734239005,-500.0,9.999e-05,2]
[348705549,1736734239014,-500.0,9.999e-05,2]
[348705552,1736734239023,-500.0,9.999e-05,2]
[348705555,1736734239034,-513.7183478,9.999e-05,2]
[348705557,1736734239043,-512.27851025,9.999e-05,2]
[348705559,1736734239053,-396.063976,9.999e-05,2]
[348705560,1736734239064,-523.88379628,9.999e-05,2]
[348705561,1736734239074,-500.0,9.999e-05,2]
[348705562,1736734239083,-500.0,9.999e-05,2]
[348705563,1736734239092,-500.0,9.999e-05,2]
[348705564,1736734239101,-500.0,9.999e-05,2]
[348705565,1736734239110,-500.0,9.999e-05,2]
[348705566,1736734239119,-502.51886183,9.999e-05,2]
[348705567,1736734239129,-514.05533528,9.999e-05,2]
[348705568,1736734239138,-526.35187993,9.999e-05,2]
[348705569,1736734239148,-500.0,9.999e-05,2]
[348705570,1736734239159,-500.0,9.999e-05,2]
[348705571,1736734239167,-500.0,9.999e-05,2]
[348705572,1736734239177,-500.0,9.999e-05,2]
[348705573,1736734239186,-500.0,9.999e-05,2]
[348705574,1736734239195,-518.49796819,9.999e-05,2]
[348705575,1736734239205,-905.26848524,9.999e-05,2]
[348705576,1736734239214,-500.0,9.999e-05,2]
[348705577,1736734239223,-500.0,9.999e-05,2]
[348705578,1736734239233,-500.0,9.999e-05,2]
[348705579,1736734239241,-459.69577131,9.999e-05,2]
[348705580,1736734239250,-500.0,9.999e-05,2]
[348705581,1736734239259,-500.0,9.999e-05,2]
[348705582,1736734239269,-646.25503646,9.999e-05,2]
[348705583,1736734239278,-500.0,9.999e-05,2]
[348705584,1736734239287,-1465.27,9.999e-05,2]
[348705585,1736734239296,-500.0,9.999e-05,2]
[348705586,1736734239305,-401.09895308,9.999e-05,2]
[348705587,1736734239315,-321.57229604,9.999e-05,2]
[348705588,1736734239325,-500.0,9.999e-05,2]
[348705589,1736734239335,-514.22505212,9.999e-05,2]
[348705590,1736734239344,-500.0,9.999e-05,2]
[348705591,1736734239353,-500.0,9.999e-05,2]
[348705592,1736734239362,-500.0,9.999e-05,2]
[348705593,1736734239372,-500.0,9.999e-05,2]
[348705594,1736734239381,-831.17,9.999e-05,2]
[348705595,1736734239390,-500.0,9.999e-05,2]
[348705596,1736734239399,-965.02,9.999e-05,2]
[348705597,1736734239409,-500.0,9.999e-05,2]
[348705598,1736734239419,-500.0,9.999e-05,2]
[348705599,1736734239427,-500.0,9.999e-05,2]
[348705600,1736734239437,-500.0,9.999e-05,2]
[348705601,1736734239446,-500.0,9.999e-05,2]
[348705602,1736734239455,-500.0,9.999e-05,2]
[348705603,1736734239464,-500.0,9.999e-05,2]
[348705604,1736734239474,-535.59699017,9.999e-05,2]
[348705605,1736734239485,-1912.85,9.999e-05,2]
[348705606,1736734239495,-515.77139236,9.999e-05,2]
[348705607,1736734239504,-500.0,9.999e-05,2]
[348705608,1736734239513,-507.84051174,9.999e-05,2]
[348705609,1736734239524,-500.0,9.999e-05,2]
[348705610,1736734239533,-500.0,9.999e-05,2]
[348705611,1736734239542,-513.98581476,9.999e-05,2]
[348705612,1736734239557,-267.70865147,9.999e-05,2]
[348705613,1736734239566,-621.42768361,9.999e-05,2]
[348705614,1736734239575,-500.0,9.999e-05,2]
[348705615,1736734239584,-2124.89,9.999e-05,2]
[348705616,1736734239594,-500.0,9.999e-05,2]
[348705617,1736734239604,-500.0,9.999e-05,2]
[348705618,1736734239616,-500.0,9.999e-05,2]
[348705619,1736734239625,-723.63,9.999e-05,2]
[348705620,1736734239635,-500.0,9.999e-05,2]
[348705621,1736734239644,-500.0,9.999e-05,2]
[348705622,1736734239655,-389.65897776,9.999e-05,2]
[348705623,1736734239665,-500.0,9.999e-05,2]
[348705624,1736734239674,-500.0,9.999e-05,2]
[348705625,1736734239684,-500.0,9.999e-05,2]
[348705626,1736734239694,-518.31287453,9.999e-05,2]
[348705627,1736734239705,-500.0,9.999e-05,2]
[348705628,1736734239714,-500.0,9.999e-05,2]
[348705629,1736734239723,-517.23713519,9.999e-05,2]
[348705630,1736734239732,-529.975957,9.999e-05,2]
[348705631,1736734239742,-500.0,9.999e-05,2]
[348705632,1736734239752,-500.0,9.999e-05,2]
[348705633,1736734239761,-500.0,9.999e-05,2]
[348705634,1736734239771,-500.0,9.999e-05,2]
[348705635,1736734239781,-203.14677106,9.999e-05,2]
[348705636,1736734239790,-500.0,9.999e-05,2]
[348705637,1736734239800,-500.0,9.999e-05,2]
[348705638,1736734239809,-500.0,9.999e-05,2]
[348705639,1736734239818,-986.61,9.999e-05,2]
[348705640,1736734239827,-500.0,9.999e-05,2]
[348705641,1736734239837,-500.0,9.999e-05,2]
[348705642,1736734239846,-513.78604946,9.999e-05,2]
[348705643,1736734239856,-511.85395517,9.999e-05,2]
[348705644,1736734239865,-209.22198475,9.999e-05,2]
[348705645,1736734239875,-500.0,9.999e-05,2]
[348705646,1736734239885,-516.58,9.999e-05,2]
[348705647,1736734239894,-534.46,9.999e-05,2]
[348705648,1736734239905,-500.0,9.999e-05,2]
[348705649,1736734239914,-500.0,9.999e-05,2]
[348705650,1736734239924,-500.0,9.999e-05,2]
[348705651,1736734239934,-710.26,9.999e-05,2]
[348705652,1736734239944,-517.26300063,9.999e-05,2]
[348705653,1736734239954,-513.00943707,9.999e-05,2]
[348705654,1736734239964,-500.0,9.999e-05,2]
[348705655,1736734239974,-985.04,9.999e-05,2]
[348705656,1736734239983,-1740.86,9.999e-05,2]
[348705657,1736734239992,-1947.69,9.999e-05,2]
[348705658,1736734240002,-500.0,9.999e-05,2]
[348705659,1736734240011,-514.14037317,9.999e-05,2]
[348705660,1736734240020,-500.0,9.999e-05,2]
[348705661,1736734240029,-500.0,9.999e-05,2]
[348705662,1736734240039,-500.0,9.999e-05,2]
[348705663,1736734240049,-1016.83,9.999e-05,2]
[348705664,1736734240059,-912.84,9.999e-05,2]
[348705665,1736734240068,-519.38829893,9.999e-05,2]
[348705666,1736734240078,-500.0,9.999e-05,2]
[348705667,1736734240087,-500.0,9.999e-05,2]
[348705668,1736734240097,-528.39894348,9.999e-05,2]
[348705669,1736734240108,-500.0,9.999e-05,2]
[348705670,1736734240117,-500.0,9.999e-05,2]
[348705671,1736734240127,-935.41,9.999e-05,2]
[348705672,1736734240136,-500.0,9.999e-05,2]
[348705673,1736734240146,-500.0,9.999e-05,2]
[348705674,1736734240157,-500.0,9.999e-05,2]
[348705675,1736734240167,-2146.8,9.999e-05,2]
[348705676,1736734240177,-500.0,9.999e-05,2]
[348705677,1736734240186,-513.58310052,9.999e-05,2]
[348705678,1736734240196,-514.28935141,9.999e-05,2]
[348705679,1736734240206,-500.0,9.999e-05,2]
[348705680,1736734240215,-687.4,9.999e-05,2]
[348705681,1736734240225,-500.0,9.999e-05,2]
[348705682,1736734240235,-500.0,9.999e-05,2]
[348705683,1736734240244,-3496.2,9.999e-05,2]
[348705684,1736734240253,-514.78838508,9.999e-05,2]
[348705685,1736734240262,-500.0,9.999e-05,2]
[348705686,1736734240272,-500.0,9.999e-05,2]
[348705687,1736734240282,-500.0,9.999e-05,2]
[348705688,1736734240291,-525.88211395,9.999e-05,2]
[348705689,1736734240300,-500.0,9.999e-05,2]
[348705690,1736734240310,-500.0,9.999e-05,2]
[348705691,1736734240320,-512.16891457,9.999e-05,2]
[348705692,1736734240330,-500.0,9.999e-05,2]
[348705693,1736734240339,-500.0,9.999e-05,2]
[348705694,1736734240349,-518.97776057,9.999e-05,2]
[348705695,1736734240359,-593.24,9.999e-05,2]
[348705696,1736734240368,-500.0,9.999e-05,2]
[348705697,1736734240379,-500.0,9.999e-05,2]
[348705698,1736734240388,-848.76,9.999e-05,2]
[348705699,1736734240398,-515.70211561,9.999e-05,2]
[348705700,1736734240414,-515.90007585,9.999e-05,2]
[348705701,1736734240424,-516.59492286,9.999e-05,2]
[348705702,1736734240434,-1639.41,9.999e-05,2]
[348705703,1736734240443,-880.17,9.999e-05,2]
[348705704,1736734240453,-500.0,9.999e-05,2]
[348705705,1736734240463,-500.0,9.999e-05,2]
[348705706,1736734240472,-500.0,9.999e-05,2]
[348705707,1736734240482,-500.0,9.999e-05,2]
[348705708,1736734240491,-500.0,9.999e-05,2]
[348705709,1736734240500,-506.84907425,9.999e-05,2]
[348705710,1736734240510,-512.05740027,9.999e-05,2]
[348705711,1736734240519,-1695.81,9.999e-05,2]
[348705712,1736734240529,-500.0,9.999e-05,2]
[348705713,1736734240539,-500.0,9.999e-05,2]
[348705714,1736734240548,-489.56324963,9.999e-05,2]
[348705715,1736734240558,-500.0,9.999e-05,2]
[348705716,1736734240567,-1031.77,9.999e-05,2]
[348705717,1736734240576,-500.0,9.999e-05,2]
[348705718,1736734240586,-615.16287303,9.999e-05,2]
[348705719,1736734240595,-500.0,9.999e-05,2]
[348705720,1736734240607,-500.0,9.999e-05,2]
[348705721,1736734240619,-616.24,9.999e-05,2]
[348705722,1736734240629,-500.0,9.999e-05,2]
[348705723,1736734240638,-500.0,9.999e-05,2]
[348705724,1736734240647,-1422.21,9.999e-05,2]
[348705725,1736734240656,-1687.68,9.999e-05,2]
[348705726,1736734240666,-500.0,9.999e-05,2]
[348705727,1736734240675,-500.0,9.999e-05,2]
[348705728,1736734240684,-1566.17,9.999e-05,2]
[348705729,1736734240694,-913.51,9.999e-05,2]
[348705730,1736734240703,-517.28486051,9.999e-05,2]
[348705731,1736734240712,-500.0,9.999e-05,2]
[348705732,1736734240722,-899.3,9.999e-05,2]
[348705733,1736734240731,-589.79,9.999e-05,2]
[348705734,1736734240741,-500.0,9.999e-05,2]
[348705735,1736734240750,-589.81,9.999e-05,2]
[348705736,1736734240759,-500.0,9.999e-05,2]
[348705737,1736734240769,-1374.38,9.999e-05,2]
[348705738,1736734240778,-500.0,9.999e-05,2]
[348705739,1736734240787,-501.94,9.999e-05,2]
[348705740,1736734240797,-500.0,9.999e-05,2]
[348705741,1736734240806,-500.0,9.999e-05,2]
[348705742,1736734240815,-731.28,9.999e-05,2]
[348705743,1736734240825,-539.36,9.999e-05,2]
[348705744,1736734240834,-1347.86,9.999e-05,2]
[348705745,1736734240843,-594.17,9.999e-05,2]
[348705746,1736734241120,-154.0691566,9.999e-05,2]
[348705747,1736734241129,-513.67804063,9.999e-05,2]
[348705748,1736734241139,-511.13865883,9.999e-05,2]
[348705749,1736734241147,-500.0,9.999e-05,2]
[348705750,1736734241159,-516.83428533,9.999e-05,2]
[348705751,1736734241168,-502.99,9.999e-05,2]
[348705752,1736734241177,-520.21,9.999e-05,2]
[348705753,1736734241186,-500.0,9.999e-05,2]
[348705754,1736734241196,-517.07900396,9.999e-05,2]
[348705755,1736734241205,-619.34,9.999e-05,2]
[348705756,1736734241214,-1139.79,9.999e-05,2]
[348705757,1736734241223,-500.0,9.999e-05,2]
[348705758,1736734241231,-500.0,9.999e-05,2]
[348705759,1736734241240,-500.0,9.999e-05,2]
[348705760,1736734241249,-500.0,9.999e-05,2]
[348705761,1736734241259,-500.0,9.999e-05,2]
[348705762,1736734241268,-500.0,9.999e-05,2]
[348705763,1736734241277,-500.0,9.999e-05,2]
[348705764,1736734241287,-500.0,9.999e-05,2]
[348705765,1736734241296,-500.0,9.999e-05,2]
[348705766,1736734241307,-500.0,9.999e-05,2]
[348705767,1736734241316,-765.99,9.999e-05,2]
[348705768,1736734241325,-500.0,9.999e-05,2]
[348705769,1736734241335,-511.1116947,9.999e-05,2]
[348705770,1736734241343,-500.0,9.999e-05,2]
[348705771,1736734241353,-500.0,9.999e-05,2]